[Event "FIDE CB Open 2022"]
[Site "Ceske Budejovice"]
[Date "2022.07.05"]
[Round "5.5"]
[White "Velicka, Petr"]
[Black "Mostbauer, Maximilian"]
[Result "1-0"]
[ECO "C06"]
[WhiteElo "2384"]
[BlackElo "2192"]
[Annotator "TA"]
[PlyCount "155"]
[EventDate "2022.07.01"]
[EventType "swiss"]
[EventCountry "CZE"]
[SourceTitle "playchess.com"]
[Source "ChessBase"]
[SourceQuality "1"]
[TimeControl "40/5400+30:1800+30"]

{[%evp 10,155,31,28,35,27,70,46,58,56,45,33,64,62,75,72,82,67,72,72,117,103,141,94,97,94,94,94,94,94,94,87,104,94,119,94,94,87,87,75,87,75,75,75,75,75,100,79,189,94,94,94,94,94,94,94,94,94,94,94,94,94,94,94,94,94,94,0,87,87,87,87,87,80,80,72,72,72,80,72,72,72,72,72,72,72,72,72,72,72,72,72,143,143,143,143,143,143,143,143,143,143,143,143,143,143,143,143,143,143,143,143,143,143,143,143,143,143,143,143,143,143,143,143,143,27,109,109,109,109,109,109,109,0,88,88,88,88,88,88,88,113,1277,1197,1841,1656,1211,1093]} 1. e4 {[%emt 0:00:04]} e6 {[%emt 0:00:11]} 2. d4 {[%emt 0:00:04]} d5 {[%emt 0:00:04]} 3. Nd2 {[%emt 0:00:07]} Nf6 {[%emt 0:00:26]} 4. e5 {[%emt 0:00:05]} Nfd7 {[%emt 0:00:04]} 5. Bd3 {[%emt 0:00:10]} c5 {[%emt 0:00:06]} 6. c3 {[%emt 0:00:03]} b5 {[%emt 0:00:07] C06: French Tarrasch: 3...Nf6 4 e5 Nfd7 5 Bd3 main lines.} 7. a3 {[%emt 0:05:10] [#]} c4 $146 {[%emt 0:00:58]} ({Predecessor:} 7... Qb6 8. Ne2 Nc6 9. Nf3 a5 10. O-O h6 11. Be3 Ba6 12. h4 a4 13. Re1 Na5 14. Rb1 {1-0 (35) Demburg,D (2071)-Werner,C (2197) Bayern 2009}) 8. Bb1 {[%emt 0:05:23]} Nc6 {[%emt 0:01:27] White is slightly better.} 9. Ne2 {[%emt 0:00:45]} a5 {[%emt 0:03:07]} 10. O-O {[%emt 0:00:46]} g6 {[%emt 0:15:44]} 11. Nf3 {[%emt 0:09:56]} a4 {[%emt 0:09:07]} 12. Bg5 {[%emt 0:02:04]} Be7 {[%emt 0:02:57]} 13. h4 {[%emt 0:05:07]} h6 {[%emt 0:08:54]} 14. Bxe7 {[%emt 0:04:08]} Nxe7 {[%emt 0:00:36]} 15. Qd2 {[%emt 0:04:42]} Nf5 {[%emt 0:04:50]} 16. g3 {[%emt 0:00:50]} (16. h5 $142 $1) 16... Qe7 {[%emt 0:04:45]} 17. Re1 {[%emt 0:10:42]} Bb7 {[%emt 0:02:29]} 18. Nf4 {[%emt 0:00:30]} O-O-O {[%emt 0:04:44]} 19. Bxf5 {[%emt 0:05:01]} gxf5 {[%emt 0:00:49]} 20. Kf1 {[%emt 0:00:13]} Bc6 {[%emt 0:03:38]} 21. Re2 {[%emt 0:07:59]} Rdg8 {[%emt 0:03:20]} 22. Ne1 {[%emt 0:02:05]} h5 {[%emt 0:04:53]} 23. Nf3 {[%emt 0:02:58]} Nf8 {[%emt 0:05:39]} 24. Ree1 {[%emt 0:01:52]} Rg4 {[%emt 0:01:27]} 25. Nh2 {[%emt 0:07:18] Pair of Knights!} Rg7 {[%emt 0:00:14]} 26. Qd1 {[%emt 0:01:31]} Rgh7 {[%emt 0:00:41]} 27. Nf3 {[%emt 0:00:18]} Ng6 {[%emt 0:01:23]} 28. Ng5 {[%emt 0:00:45]} Nxf4 {[%emt 0:01:30]} (28... Rh6 $16 {was called for.}) 29. gxf4 {[%emt 0:01:16]} (29. Nxh7 $18 {and White stays clearly on top.} Rxh7 30. gxf4) 29... Rg7 $16 {[%emt 0:01:07]} 30. Qf3 {[%emt 0:00:38]} Rg6 {[%emt 0:01:03]} 31. Re3 {[%emt 0:00:30]} Kc7 {[%emt 0:00:46]} 32. Ke2 {[%emt 0:00:34]} Kb6 {[%emt 0:02:06]} 33. Kd2 {[%emt 0:01:34]} Bd7 {[%emt 0:01:49]} 34. Rg1 {[%emt 0:00:19]} Bc6 {[%emt 0:00:44]} 35. Qd1 {[%emt 0:02:25]} Be8 {[%emt 0:01:29]} 36. Reg3 {[%emt 0:00:27] White is more active.} Rhh6 {[%emt 0:00:24]} 37. R1g2 {[%emt 0:01:16]} Kb7 {[%emt 0:01:00]} 38. Rg1 {[%emt 0:04:58]} Kb6 $1 {[%emt 0:00:05]} 39. Ke3 {[%emt 0:00:06]} Kb7 {[%emt 0:04:42]} 40. Qf3 {[%emt 0:00:23]} Kb6 {[%emt 0:03:23]} 41. Qg2 {[%emt 0:33:57]} Kc7 {[%emt 0:33:56]} 42. Qf1 {[%emt 0:00:17]} Kb6 {[%emt 0:00:52]} 43. R1g2 {[%emt 0:00:06]} Kc7 {[%emt 0:00:00]} 44. Qg1 {[%emt 0:00:00]} Kd7 {[%emt 0:00:00]} 45. f3 {[%emt 0:00:00]} Kc6 {[%emt 0:00:00]} 46. Nh3 {[%emt 0:00:00]} Kc7 {[%emt 0:00:00]} (46... Qxh4 $2 47. Ng5 $18) 47. Rg5 {[%emt 0:00:00]} Qf8 {[%emt 0:00:00]} 48. Nf2 {[%emt 0:00:00]} Rh7 {[%emt 0:00:00]} 49. Nh1 {[%emt 0:00:00]} Kb6 {[%emt 0:00:00]} 50. Ng3 {[%emt 0:00:00]} Rxg5 {[%emt 0:00:00]} (50... Qg8 $142) 51. hxg5 {[%emt 0:00:00]} ({Don't play} 51. fxg5 Rh8 $16) 51... h4 {[%emt 0:00:00]} 52. Rh2 {[%emt 0:00:00]} Bd7 {[%emt 0:00:00]} 53. Qh1 {[%emt 0:00:00]} Qh8 {[%emt 0:00:08]} 54. Ne2 {[%emt 0:00:00]} h3 {[%emt 0:00:55]} 55. Ng1 {[%emt 0:00:00][%cal Be2g1,Bg1h3,Bh3f2,Bf2h1,Bh1g3,Bg3h5,Bh5f6][%mdl 32]} Rh4 {[%emt 0:00:28]} 56. Rxh3 {[%emt 0:00:00]} Rxh3 {[%emt 0:00:04]} 57. Qxh3 {[%emt 0:00:00]} ({Don't do} 57. Nxh3 Kc7 $16) 57... Qxh3 {[%emt 0:03:20]} 58. Nxh3 {[%emt 0:00:00][%mdl 4096] Endgame KB-KN} Kc7 {[%emt 0:00:04]} 59. Nf2 {[%emt 0:01:30]} Kd8 {[%emt 0:00:08]} 60. Nh1 {[%emt 0:00:05]} Ke7 {[%emt 0:02:17]} 61. Ng3 {[%emt 0:00:07]} Kf8 {[%emt 0:00:34]} 62. Nh5 {[%emt 0:00:05]} Bc6 {[%emt 0:00:35]} 63. Kf2 {[%emt 0:00:52]} Kg8 {[%emt 0:00:45]} 64. Kg3 {[%emt 0:03:16]} Kh7 {[%emt 0:00:04]} 65. Kh4 {[%emt 0:00:05]} Kg6 {[%emt 0:00:19]} 66. Nf6 {[%emt 0:00:08]} Bb7 {[%emt 0:00:42]} 67. Ng8 {[%emt 0:01:57]} ({White should try} 67. Ne8 $16) 67... Kg7 {[%emt 0:00:23]} (67... Kh7 $1 $11 {keeps the balance.}) 68. Ne7 $1 {[%emt 0:01:14]} Kf8 {[%emt 0:02:30] [#]} 69. g6 $1 {[%emt 0:00:05][%cal Oh4g5]} fxg6 {[%emt 0:00:12]} (69... Kxe7 $2 70. g7 Kd7 71. g8=Q $18) 70. Nxg6+ {[%emt 0:00:07]} Kg7 {[%emt 0:01:06]} 71. Kg5 {[%emt 0:00:53]} (71. Kh5 $1 $16) 71... Bc6 {[%emt 0:00:09]} (71... Bc8 $1 $11) 72. Nh4 $1 {[%emt 0:00:39][%cal Oh4f5] Strongly threatening Nxf5+!} Bd7 {[%emt 0:00:07]} 73. Ng2 $1 {[%emt 0:00:10]} Bc6 {[%emt 0:00:18]} 74. Ne3 {[%emt 0:00:16][%cal Oe3f5] aiming for Nxf5+!} Bd7 {[%emt 0:00:34]} 75. Nf1 {[%emt 0:00:08] Ng3 is the strong threat.} Bc6 $2 {[%emt 0:02:00][%mdl 8192] [#]} (75... Be8 $16) 76. Ng3 $1 $18 {[%emt 0:02:03][%cal Og3f5] And now Nxf5+! would win. White is clearly winning.} Be8 {[%emt 0:00:15] [#]} 77. Nxf5+ $1 {[%emt 0:01:06][%mdl 512]} exf5 {[%emt 0:00:02]} 78. Kxf5 {[%emt 0:00:08] Weighted Error Value: White=0.08 (flawless) /Black=0.08 (flawless)} 1-0

[Event "FIDE CB Open 2022"]
[Site "Ceske Budejovice"]
[Date "2022.07.05"]
[Round "5.6"]
[White "Mai, Alexander Oliver"]
[Black "Mostbauer, Florian"]
[Result "1/2-1/2"]
[ECO "B15"]
[WhiteElo "2159"]
[BlackElo "2303"]
[Annotator "TA"]
[PlyCount "38"]
[EventDate "2022.07.01"]
[EventType "swiss"]
[EventCountry "CZE"]
[SourceTitle "playchess.com"]
[Source "ChessBase"]
[SourceQuality "1"]
[TimeControl "40/5400+30:1800+30"]

{[%evp 10,38,27,15,20,8,20,5,9,8,9,12,9,10,30,4,6,8,2,14,26,20,14,29,18,22,23,18,52,16,51]} 1. e4 {[%emt 0:00:04]} c6 {[%emt 0:00:08]} 2. d4 {[%emt 0:00:07]} d5 {[%emt 0:00:05]} 3. Nd2 {[%emt 0:00:06]} dxe4 {[%emt 0:00:07]} 4. Nxe4 {[%emt 0:00:06]} Nf6 {[%emt 0:00:11]} 5. Nxf6+ {[%emt 0:00:12]} exf6 {[%emt 0:00:08]} 6. Bc4 {[%emt 0:00:22]} Na6 {[%emt 0:00:54][%cal Bb8a6,Ba6c7,Bc7d5,Bd5b6][%mdl 32] B15: Caro-Kann: 3 Nc3: 3...g6 and 3...dxe4 4 Nxe4 Nf6 5 Nxf6+ exf6.} 7. Nf3 {[%emt 0:01:03]} Be7 {[%emt 0:01:07]} 8. h3 {[%emt 0:02:32]} O-O {[%emt 0:01:05]} 9. O-O {[%emt 0:00:13] [#]} b5 $146 {[%emt 0:04:57]} ({Predecessor:} 9... Bf5 10. c3 Nc7 11. Re1 Nd5 12. Bd3 Bxd3 13. Qxd3 Re8 14. Bd2 a5 15. c4 Nb4 {1-0 (55) Fedoseev,V (2687)-Pantzar,M (2421) Tornelo INT 2021}) 10. Be2 {[%emt 0:02:12]} Nc7 {[%emt 0:03:02]} 11. a4 {[%emt 0:06:57]} a6 {[%emt 0:02:14]} 12. c3 {[%emt 0:03:26]} Be6 {[%emt 0:01:41]} 13. b3 {[%emt 0:01:12][%cal Bb2b3,Bb3c4][%mdl 32]} Nd5 {[%emt 0:07:05]} 14. Bd2 {[%emt 0:00:29]} Qb8 {[%emt 0:02:39]} 15. axb5 {[%emt 0:08:35]} axb5 {[%emt 0:02:44]} 16. Rxa8 {[%emt 0:00:52]} Qxa8 {[%emt 0:00:09]} 17. c4 {[%emt 0:00:52]} bxc4 {[%emt 0:01:36]} 18. bxc4 {[%emt 0:00:06]} Nb6 {[%emt 0:02:20]} 19. Qc2 {[%emt 0:01:42]} (19. Qb3 $5 {[%cal Rb3b6]} Rb8 20. Bf4 $14) 19... Rd8 {[%emt 0:13:12] Weighted Error Value: White=0.08 (flawless) /Black=0.07 (flawless)} 1/2-1/2

[Event "FIDE CB Open 2022"]
[Site "Ceske Budejovice"]
[Date "2022.07.05"]
[Round "5.7"]
[White "Vybiral, Zdenek"]
[Black "Maryasin, Boris"]
[Result "0-1"]
[ECO "B33"]
[WhiteElo "2143"]
[BlackElo "2260"]
[Annotator "TA"]
[PlyCount "60"]
[EventDate "2022.07.01"]
[EventType "swiss"]
[EventCountry "CZE"]
[SourceTitle "playchess.com"]
[Source "ChessBase"]
[SourceQuality "1"]
[TimeControl "40/5400+30:1800+30"]

{[%evp 17,60,59,52,55,73,64,83,49,89,38,33,44,121,121,131,137,115,106,141,144,351,344,281,342,346,340,327,315,313,350,320,331,705,693,688,621,583,307,316,306,277,-22,-16,-29997,-29998]} 1. e4 {[%emt 0:00:17]} c5 {[%emt 0:00:37]} 2. Nf3 {[%emt 0:00:10]} Nc6 {[%emt 0:00:19]} 3. d4 {[%emt 0:00:15]} cxd4 {[%emt 0:00:09]} 4. Nxd4 {[%emt 0:00:06]} Qb6 {[%emt 0:00:13]} 5. Nb3 {[%emt 0:00:23]} Nf6 {[%emt 0:00:11]} 6. Nc3 {[%emt 0:00:06]} e6 {[%emt 0:00:08]} 7. a3 {[%emt 0:00:30]} Qc7 {[%emt 0:00:35]} 8. Be3 {[%emt 0:00:56]} a6 {[%emt 0:00:19]} 9. f4 {[%emt 0:00:16]} d6 {[%emt 0:00:21]} 10. g4 {[%emt 0:00:09] now scores much better than the old 10.Be2. B33: Sicilian: Pelikan and Sveshnikov Variations.} b5 {[%emt 0:01:28]} 11. g5 {[%emt 0:00:29]} Nd7 {[%emt 0:00:11]} 12. Qd2 {[%emt 0:01:55] White is better.} Bb7 {[%emt 0:01:57]} 13. Qf2 {[%emt 0:00:59]} ({White should try} 13. O-O-O $16) 13... g6 $14 {[%emt 0:03:43] [#]} 14. O-O-O $146 {[%emt 0:04:53]} ({Predecessor:} 14. Bg2 Bg7 15. O-O O-O 16. Rad1 Rfd8 17. Rd2 Rab8 18. Rfd1 Bf8 19. Ne2 Ba8 20. Rd3 {½-½ (60) Mokry,K (2515)-Polugaevsky,L (2605) Hilversum 1993}) 14... b4 {[%emt 0:01:31]} (14... Bg7 $14) 15. axb4 $16 {[%emt 0:00:31]} Nxb4 {[%emt 0:00:08]} 16. h4 {[%emt 0:19:44]} Bg7 {[%emt 0:02:27]} 17. Bd4 {[%emt 0:00:21]} e5 {[%emt 0:00:29]} 18. fxe5 {[%emt 0:00:16]} dxe5 {[%emt 0:02:19]} (18... Nxe5 $16 19. Bb6 Qb8) 19. Bc5 {[%emt 0:24:27]} Nxc5 {[%emt 0:00:43]} 20. Nxc5 {[%emt 0:00:05]} (20. Qxc5 Qxc5 21. Nxc5 Bc6 $16) 20... Bc8 {[%emt 0:13:08] Against Rd7} 21. Bc4 {[%emt 0:08:46][%cal Od1d7] Rd7! is the strong threat.} O-O {[%emt 0:02:04]} 22. h5 {[%emt 0:01:10]} gxh5 {[%emt 0:00:39]} 23. Rxh5 {[%emt 0:01:29] Black must now prevent Rdh1.} Bg4 {[%emt 0:00:21]} 24. Rh4 {[%emt 0:22:37]} Bxd1 {[%emt 0:00:47] [#]} (24... Rac8) 25. Qf5 $1 $18 {[%emt 0:00:06][%csl Gh4][%cal Rf5h7]} h5 {[%emt 0:06:21]} 26. gxh6 {[%emt 0:00:59][%cal Of5g6] Qg6! would kill now.} Qe7 {[%emt 0:07:18]} 27. hxg7 {[%emt 0:07:53][%csl Gh4][%cal Rf5h7]} Qxh4 {[%emt 0:00:16]} 28. gxf8=Q+ {[%emt 0:00:09]} ({Don't take} 28. gxf8=R+ Rxf8 29. Nxd1 Qf4+ 30. Qxf4 exf4) (28. gxf8=B $6 Bh5 29. b3 Rxf8 $18) 28... Rxf8 {[%emt 0:00:09]} 29. Nd7 $2 {[%emt 0:03:01] Pair of Knights!} ({Resist} 29. Kxd1 $6 Qh1+ 30. Qf1 Rd8+ 31. Kc1 Qxf1+ 32. Bxf1 a5 $18) ({Better is} 29. Nxd1 $18 Qf4+ 30. Qxf4 exf4 31. c3) 29... Bxc2 $11 {[%emt 0:04:04] ( -> ...Qe1+)} 30. Nd1 $2 {[%emt 0:01:57][%mdl 8192]} ({Wrong is} 30. Qg6+ $2 Kh8 31. Qf6+ Qxf6 32. Nxf6 Kg7 $19) (30. b3 $11 Bd3 31. Nxf8 Bxc4 32. bxc4 Kxf8 33. Qd7) 30... Qh6+ {[%emt 0:00:25] What a bad dream for White.  Weighted Error Value: White=0.68/Black=0.21 (precise)} 0-1

[Event "FIDE CB Open 2022"]
[Site "Ceske Budejovice"]
[Date "2022.07.05"]
[Round "5.8"]
[White "Bartos, Jan"]
[Black "Palchuk, Andrii"]
[Result "1/2-1/2"]
[ECO "A56"]
[WhiteElo "2142"]
[BlackElo "2248"]
[Annotator "TA"]
[PlyCount "72"]
[EventDate "2022.07.01"]
[EventType "swiss"]
[EventCountry "CZE"]
[SourceTitle "playchess.com"]
[Source "ChessBase"]
[SourceQuality "1"]
[TimeControl "40/5400+30:1800+30"]

{[%evp 9,72,14,16,10,8,6,0,-6,21,8,25,22,15,20,12,20,40,6,8,8,14,12,0,-10,0,0,18,0,0,-10,-8,-26,-20,-21,-14,-18,-16,-71,0,0,0,0,0,0,0,0,0,0,0,0,0,0,0,0,0,0,0,0,0,0,0,0,0,0,0]} 1. d4 {[%emt 0:01:51]} Nf6 {[%emt 0:00:39]} 2. c4 {[%emt 0:00:05]} c5 {[%emt 0:00:02]} 3. dxc5 {[%emt 0:00:48]} Qa5+ {[%emt 0:03:57]} 4. Nd2 {[%emt 0:00:21]} Qxc5 {[%emt 0:06:06]} 5. Ngf3 {[%emt 0:05:03]} b6 {[%emt 0:02:06]} 6. a3 {[%emt 0:00:29] A56: Czech Benoni.} Bb7 {[%emt 0:00:49]} ({Much less strong is} 6... Ng4 7. e3 $16) 7. b4 {[%emt 0:00:32]} Qc7 {[%emt 0:00:19]} 8. Bb2 {[%emt 0:00:26][%cal Oe2e4]} d6 {[%emt 0:01:29]} 9. e3 {[%emt 0:00:31][%cal Oc4c5]} Nbd7 {[%emt 0:01:23] Inhibits c5.} 10. Be2 {[%emt 0:00:11]} e6 {[%emt 0:00:13]} 11. O-O {[%emt 0:00:12]} Be7 {[%emt 0:00:03] [#]} 12. Nd4 $146 {[%emt 0:04:12]} ({Predecessor:} 12. Rc1 Rc8 13. Nd4 O-O 14. N2f3 Rfd8 15. h3 Qb8 16. Qb3 h6 17. Rfd1 a6 18. Nh2 {½-½ (47) Mickovic,S (2065)-Grkovic,V (2170) Vrnjacka Banja 2006}) 12... Rc8 {[%emt 0:10:51]} 13. Nb5 {[%emt 0:08:23]} Qb8 {[%emt 0:00:20]} 14. Bf3 {[%emt 0:00:35]} a6 {[%emt 0:02:50]} 15. Bxb7 {[%emt 0:01:10]} Qxb7 {[%emt 0:00:05]} 16. Nd4 {[%emt 0:00:34]} O-O {[%emt 0:00:33]} 17. Qe2 {[%emt 0:01:33]} Rfd8 {[%emt 0:13:27]} 18. Rac1 {[%emt 0:06:52]} Bf8 {[%emt 0:06:14]} 19. Qf3 {[%emt 0:03:21]} Qxf3 {[%emt 0:01:38]} 20. N4xf3 {[%emt 0:03:39]} Rc7 {[%emt 0:03:54]} 21. Rc2 {[%emt 0:05:41]} Rdc8 {[%emt 0:00:05]} 22. Rfc1 {[%emt 0:00:20]} d5 {[%emt 0:11:13]} 23. Ne1 {[%emt 0:00:49] [#]} (23. Bxf6 $11 {remains equal.} Nxf6 24. Nd4) 23... dxc4 {[%emt 0:03:06]} ({Black should play} 23... Ne4 $1 $17 {...Nxd2 is the strong threat.} 24. Nxe4 dxe4) 24. Rxc4 $11 {[%emt 0:00:07] The position is equal.} Rxc4 {[%emt 0:00:04]} 25. Rxc4 {[%emt 0:00:05]} Rxc4 {[%emt 0:00:09]} 26. Nxc4 {[%emt 0:00:04]} Ne4 {[%emt 0:08:40]} 27. Kf1 {[%emt 0:07:16]} f6 {[%emt 0:00:29]} 28. Ke2 {[%emt 0:02:21]} Kf7 {[%emt 0:00:29]} 29. Nd3 {[%emt 0:04:22]} Nd6 {[%emt 0:02:51]} 30. Nxd6+ {[%emt 0:08:16]} Bxd6 {[%emt 0:00:04][%mdl 4096] Endgame KBN-KBN} 31. a4 {[%emt 0:00:46]} b5 {[%emt 0:05:04]} ({Resist} 31... Bxh2 32. g3 $16) 32. axb5 {[%emt 0:00:07]} axb5 {[%emt 0:00:04]} 33. h3 {[%emt 0:02:52]} e5 {[%emt 0:00:17]} 34. e4 {[%emt 0:00:12]} Nb8 {[%emt 0:00:55]} 35. Bc3 {[%emt 0:00:56]} Nc6 {[%emt 0:00:05]} 36. Ke3 {[%emt 0:04:53]} Ke6 {[%emt 0:00:45] Weighted Error Value: White=0.07 (flawless) /Black=0.07 (flawless)} 1/2-1/2

[Event "FIDE CB Open 2022"]
[Site "Ceske Budejovice"]
[Date "2022.07.05"]
[Round "5.9"]
[White "Johannsson, Birkir Isak"]
[Black "Matras, Ondrej"]
[Result "1-0"]
[ECO "D11"]
[WhiteElo "2131"]
[BlackElo "2229"]
[Annotator "TA"]
[PlyCount "145"]
[EventDate "2022.07.01"]
[EventType "swiss"]
[EventCountry "CZE"]
[SourceTitle "playchess.com"]
[Source "ChessBase"]
[SourceQuality "1"]
[TimeControl "40/5400+30:1800+30"]

{[%evp 9,145,0,15,21,22,17,24,31,25,29,29,31,23,33,44,40,47,44,47,25,39,32,54,57,57,28,27,19,18,0,0,0,0,0,8,10,9,0,4,4,7,7,9,6,6,0,9,0,5,0,9,0,0,0,0,0,0,0,0,0,0,0,0,-30,0,0,0,0,0,0,0,0,0,0,0,0,0,0,0,0,0,0,0,0,0,0,0,0,0,0,0,0,0,0,0,0,0,0,0,0,0,0,0,0,0,0,0,0,0,0,0,0,0,0,0,0,0,0,6,6,12826,12827,12826,12821,9757,5041,12839,12839,12841,12841,12841,12842,12842,12841,12845,12845,12845,12846]} 1. Nf3 {[%emt 0:01:44]} d5 {[%emt 0:00:04]} 2. d4 {[%emt 0:00:14]} Nf6 {[%emt 0:02:00]} 3. c4 {[%emt 0:00:07]} c6 {[%emt 0:01:10]} 4. Nbd2 {[%emt 0:00:19]} Bf5 {[%emt 0:09:04]} 5. Nh4 {[%emt 0:02:04]} Bc8 {[%emt 0:05:29]} (5... Be4 $5) 6. e3 {[%emt 0:01:27] D11: Slav Defence: 3 Nf3 sidelines and 3...Nf6 4 e3 Bg4.} g6 {[%emt 0:06:12] is the legacy move (6...e6).} 7. b3 {[%emt 0:01:06]} Bg7 {[%emt 0:00:16][%cal Oe7e5]} 8. Bb2 {[%emt 0:00:26] White has an edge.} O-O {[%emt 0:00:17]} 9. Nhf3 {[%emt 0:01:36]} Bf5 {[%emt 0:07:15] 9...Nbd7 is the modern continuation.} 10. Be2 {[%emt 0:00:22]} Ne4 {[%emt 0:00:32]} 11. O-O $1 {[%emt 0:04:44]} Nxd2 {[%emt 0:00:52]} 12. Qxd2 {[%emt 0:04:04]} Nd7 {[%emt 0:01:07] [#]} 13. cxd5 $146 {[%emt 0:14:48]} ({Predecessor:} 13. b4 Bg4 14. Qc2 e6 15. a4 Re8 16. h3 Bxf3 17. Bxf3 Nb6 18. c5 Nd7 19. b5 e5 20. a5 a6 21. bxc6 bxc6 {0-1 (32) Zarkua,D (2377)-Jojua,D (2463) Tbilisi 2008}) 13... cxd5 {[%emt 0:00:04]} 14. Ne5 {[%emt 0:01:06]} Rc8 {[%emt 0:02:39] [#] White must now prevent ...Rc2.} 15. Rac1 {[%emt 0:00:56] Against Rc2} Rxc1 {[%emt 0:15:36]} 16. Rxc1 {[%emt 0:00:22]} Qb8 {[%emt 0:00:26][%cal Rd7e5]} 17. Nxd7 {[%emt 0:05:02]} (17. g4 $5 {[%cal Rg4f5]} Nxe5 18. gxf5 $14 (18. dxe5 Be6 $14)) 17... Bxd7 {[%emt 0:00:10]} 18. Ba3 {[%emt 0:04:17]} Bf6 {[%emt 0:11:26]} 19. Bd3 {[%emt 0:02:35]} Rc8 {[%emt 0:05:52]} 20. Rc2 {[%emt 0:00:22]} Rxc2 {[%emt 0:03:21]} 21. Qxc2 {[%emt 0:00:08]} Qc8 {[%emt 0:01:19]} 22. Qxc8+ {[%emt 0:00:22]} Bxc8 $11 {[%emt 0:00:01][%mdl 4096] Endgame KBB-KBB} 23. g3 {[%emt 0:01:19]} Bh3 {[%emt 0:00:58]} 24. f3 {[%emt 0:00:32]} h5 {[%emt 0:00:52]} 25. Kf2 {[%emt 0:00:16]} Kf8 {[%emt 0:01:00]} 26. Bc5 {[%emt 0:00:47]} b6 {[%emt 0:00:31]} 27. Bb4 {[%emt 0:00:15]} Ke8 {[%emt 0:01:10]} 28. a4 {[%emt 0:01:00]} Kd8 {[%emt 0:01:22]} 29. Ke2 {[%emt 0:00:38]} Bd7 {[%emt 0:05:42]} 30. h4 {[%emt 0:00:27]} Kc7 {[%emt 0:02:11]} 31. Ba3 {[%emt 0:00:33]} Bc6 {[%emt 0:02:04]} 32. f4 {[%emt 0:02:25]} Bd7 {[%emt 0:01:43]} 33. Kd2 {[%emt 0:00:43]} Kb7 {[%emt 0:02:38]} 34. Bb4 {[%emt 0:01:14]} a6 {[%emt 0:02:48]} 35. Ba3 {[%emt 0:00:25]} Bg4 {[%emt 0:05:04]} 36. Kc2 {[%emt 0:02:21]} e6 {[%emt 0:02:21]} 37. Kd2 {[%emt 0:00:49]} Bf3 {[%emt 0:00:41]} 38. Bf8 {[%emt 0:01:15]} Bd8 {[%emt 0:00:55]} 39. Ba3 {[%emt 0:01:21]} Be4 {[%emt 0:00:51]} 40. Be2 {[%emt 0:00:56]} Bf5 {[%emt 0:00:18]} 41. Bf8 {[%emt 0:30:30]} f6 {[%emt 0:05:36]} 42. Bd6 {[%emt 0:00:00]} Kc6 {[%emt 0:00:39]} 43. Bf8 {[%emt 0:00:00]} Kb7 {[%emt 0:01:58]} 44. Bd6 {[%emt 0:00:00]} Be4 {[%emt 0:02:29]} 45. Bf8 {[%emt 0:00:00]} a5 {[%emt 0:03:42]} 46. Bb5 {[%emt 0:00:00]} Kc8 {[%emt 0:01:10]} 47. Bd6 {[%emt 0:00:00]} Bc7 {[%emt 0:02:03]} 48. Be7 {[%emt 0:00:00]} Bd8 {[%emt 0:00:02]} 49. Bd6 {[%emt 0:00:00]} g5 {[%emt 0:03:42]} 50. fxg5 {[%emt 0:00:00]} fxg5 {[%emt 0:00:02]} 51. hxg5 {[%emt 0:00:00]} Bxg5 {[%emt 0:00:05]} 52. Bf8 {[%emt 0:00:00]} Kd8 {[%emt 0:01:26]} 53. Bd6 {[%emt 0:00:00]} Bf3 {[%emt 0:02:02]} 54. Be2 {[%emt 0:00:00]} Bg4 {[%emt 0:01:38]} 55. Bxg4 {[%emt 0:00:00]} hxg4 {[%emt 0:00:03] KB-KB} 56. Be5 {[%emt 0:00:00]} Kd7 {[%emt 0:01:43]} 57. Kd3 {[%emt 0:00:00]} Kc6 {[%emt 0:00:51]} 58. Ke2 {[%emt 0:00:00]} Be7 {[%emt 0:00:44]} 59. Kd3 {[%emt 0:00:00]} b5 {[%emt 0:02:33]} 60. Bb8 {[%emt 0:00:00]} bxa4 {[%emt 0:00:49]} 61. bxa4 {[%emt 0:00:00]} Bb4 {[%emt 0:04:23]} 62. Bf4 {[%emt 0:00:00]} Kd7 {[%emt 0:00:20]} 63. Be5 {[%emt 0:00:00]} Ke7 {[%emt 0:00:53]} 64. e4 {[%emt 0:00:00] Threatens to win with exd5.} Kf7 $2 {[%emt 0:02:03][%mdl 8192] A mistake that costs the game.} (64... Ba3 $11) 65. exd5 $18 {[%emt 0:00:00] White is clearly winning.} exd5 {[%emt 0:00:01] [#]} 66. Ke3 $1 {[%emt 0:00:00]} Kg6 {[%emt 0:00:15]} 67. Kf4 {[%emt 0:00:00]} Kh5 {[%emt 0:00:10]} 68. Kf5 {[%emt 0:00:00]} Bc3 {[%emt 0:02:13]} 69. Ke6 {[%emt 0:00:00]} Kg6 {[%emt 0:00:31]} 70. Kxd5 {[%emt 0:00:00]} Kf5 {[%emt 0:00:00]} 71. Bf4 {[%emt 0:00:00]} Be1 {[%emt 0:01:31]} 72. Kc6 {[%emt 0:00:00]} Bc3 {[%emt 0:01:07]} 73. d5 {[%emt 0:00:00] Weighted Error Value: White=0.03 (flawless) /Black=0.03 (flawless)} 1-0